Cogmind - Beta 13 @@@ ROGUE MODE // 2024.07.12 @ 05:18:48 Player: Halfie Result: Destroyed by G-50 Soldier with Heavy Laser Performance ------------- Evolutions (1) 500 Regions Visited (5) 1000 Robots Destroyed (30) 150 Value Destroyed (664) 664 Prototype IDs (23) 460 Alien Tech Used (0) 0 Bonus (300) 300 TOTAL SCORE: 3074 Bonus ------- Aligned with FarCom 300 Cogmind --------- Core Integrity 0/400 Matter 255/300 Energy 74/100 System Corruption 0% Temperature Cool (13) Movement Flying (37) Location -8/Mines Parts ------- > --- POWER (1) -------- (None) > --- PROPULSION (2) --- Flight Unit Flight Unit > --- UTILITY (4) ------ Targeting Computer > --- WEAPON (2) ------- (None) > --- INVENTORY (5) ---- (None) Peak State ------------ > --- POWER ------------ Light Ion Engine > --- PROPULSION ------- Flight Unit Flight Unit > --- UTILITY ---------- Medium Storage Unit Sensor Array Signal Interpreter Targeting Computer > --- WEAPON ----------- Light Assault Rifle > --- INVENTORY -------- Light Nuclear Core Wheel Medium Matter Pod Targeting Computer Army-in-a-Box [Rating: 14] Favorites ----------- Power Ion Engine Engine Ion Engine Power Core Light Nuclear Core Propulsion Aluminum Leg Leg Aluminum Leg Wheel Wheel Flight Unit Flight Unit Utility Small Storage Unit Device Seismic Detector Storage Small Storage Unit Processor Targeting Computer Weapon Autogun Energy Gun Small Laser Ballistic Gun Autogun Build | -11 -10 -9 -9 -9 -8 ------- Run | Yrd Mat Mat Min Exi Min Slots Evolved 2 | . . 2 . . . Power . | . . . . . . Propulsion . | . . . . . . Utility 2 | . . 2 . . . Weapon . | . . . . . . Parts Attached 34 | 6 15 1 7 2 3 Power 5 | 1 3 . 1 . . Engine 4 | 1 2 . 1 . . Core 1 | . 1 . . . . Reactor . | . . . . . . Propulsion 12 | 2 4 1 2 . 3 Treads . | . . . . . . Leg 5 | . 4 1 . . . Wheel 3 | 2 . . . . 1 Hover . | . . . . . . Flight 4 | . . . 2 . 2 Utility 9 | 2 2 . 3 2 . Device 3 | 1 1 . 1 . . Storage 4 | 1 1 . . 2 . Processor 2 | . . . 2 . . Hackware . | . . . . . . Protection . | . . . . . . Artifact . | . . . . . . Weapon 8 | 1 6 . 1 . . Energy Gun 4 | 1 3 . . . . Energy Cannon . | . . . . . . Ballistic Gun 4 | . 3 . 1 . . Ballistic Cannon . | . . . . . . Launcher . | . . . . . . Special Weapon . | . . . . . . Impact Weapon . | . . . . . . Slashing Weapon . | . . . . . . Piercing Weapon . | . . . . . . Special Melee Weapon . | . . . . . . Unidentified Prototypes . | . . . . . . Parts Lost 9 | . . . 4 . 5 Power 2 | . . . 1 . 1 Propulsion 2 | . . . 1 . 1 Utility 3 | . . . 1 . 2 Weapon 2 | . . . 1 . 1 Highest Loss Streak 4 | . . . 4 . 3 To Critical Strikes . | . . . . . . Average Slot Usage (%) 88 | . 99 77 69 82 54 Engine 9 | . 9 11 7 11 1 Core 2 | . 4 . . . . Leg 16 | . 23 22 3 . . Wheel 2 | . 4 . . . 7 Flight 6 | . . . 17 22 11 Device 11 | . 14 11 9 11 . Storage 11 | . 14 11 5 5 11 Processor 6 | . . . 15 22 21 Energy Gun 5 | . 9 . . . . Ballistic Gun 15 | . 18 22 11 11 1 Naked Turns . | . . . . . . Heaviest Build 17 | 11 17 17 8 15 10 Greatest Support 20 | 20 20 20 8 8 10 Greatest Overweight (x) 3 | . . . 2 1 3 Average Overweight (x) . | . . . . . . Largest Inventory Capacity 10 | 8 8 8 8 10 10 Average Capacity 7 | 7 8 8 6 7 9 Most Carried 10 | 7 8 8 8 10 10 Average Carried 7 | 4 7 7 5 6 9 Final Capacity 10 | 8 8 8 5 10 5 Final Carried 10 | 7 8 8 5 10 . Class Distribution -------------------- 65% | Mutant 34% | Scavenger-Mutant Dominant Class ---------------- Mutant | -10/Materials Mutant | -9/Materials Scavenger-Mutant | -9/Mines Scavenger-Mutant | -9/Exiles Mutant | -8/Mines Resources | -11 -10 -9 -9 -9 -8 ----------- Run | Yrd Mat Mat Min Exi Min Matter Collected 623 | 260 238 125 . . . Remotely . | . . . . . . Salvage Created 922 | 159 533 180 50 . . Parts 75 | 12 48 10 5 . . Haulers Intercepted . | . . . . . . Recyclers Shooed . | . . . . . . Parts Field Recycled . | . . . . . . Retrieved Matter . | . . . . . . Parts Self-Destructed . | . . . . . . Prevented . | . . . . . . Kills | -11 -10 -9 -9 -9 -8 ------- Run | Yrd Mat Mat Min Exi Min Combat Hostiles Destroyed 23 | . 15 4 4 . . Guns 23 | . 15 4 4 . . Classes Destroyed 7 | 2 4 1 . . . Builder 1 | . 1 . . . . Tunneler 3 | 3 . . . . . Recycler 1 | 1 . . . . . Watcher 2 | . 2 . . . . Swarmer 10 | . 6 . 4 . . Grunt 11 | . 9 2 . . . Sentry 2 | . . 2 . . . Best Kill Streak 4 | 2 4 2 4 . . Combat Bots Only 4 | . 4 2 4 . . Max Kills in Single Turn 2 | 1 2 1 1 . . Gunslinging 1 | . 1 . . . . Exploded . | . . . . . . Melee . | . . . . . . Uniques/NPCs Destroyed . | . . . . . . Combat | -11 -10 -9 -9 -9 -8 -------- Run | Yrd Mat Mat Min Exi Min Hostile Shots Fired 143 | . 40 37 20 . 46 Missed 29 | . 4 9 5 . 11 Damage Taken 1483 | . 367 409 126 . 581 Core 454 | . 40 69 35 . 310 Absorbed by Shields . | . . . . . . Core Remaining (%) 92 | 100 84 . . . . Volleys Fired 88 | 16 36 16 11 . 9 Largest 2 | 1 2 2 2 . 1 Hottest 90 | 40 90 46 46 . 20 Shots Fired 140 | 16 71 32 12 . 9 Gun 140 | 16 71 32 12 . 9 Cannon . | . . . . . . Launcher . | . . . . . . Special . | . . . . . . Kinetic 73 | . 20 32 12 . 9 Thermal 43 | . 43 . . . . Explosive . | . . . . . . Electromagnetic 24 | 16 8 . . . . Robot Hit Streak 16 | 3 16 8 4 . 5 Robot Miss Streak 5 | 2 5 4 2 . 1 Penetration Max . | . . . . . . Secondary Targets 3 | . 3 . . . . Max Gunslinging Chain 1 | . 1 . . . . Shots Hit Robots 93 | 10 51 19 8 . 5 Core Hits 40 | 4 24 8 4 . . Critical Kills . | . . . . . . Critical Parts Destroyed . | . . . . . . Critical Strikes 2 | 1 . 1 . . . Destroy 1 | . . 1 . . . Corrupt 1 | 1 . . . . . Melee Attacks . | . . . . . . Impact . | . . . . . . Slashing . | . . . . . . Piercing . | . . . . . . Sneak Attacks . | . . . . . . Combat Hostiles . | . . . . . . Follow-up Attacks . | . . . . . . Damage Inflicted 1233 | 135 642 280 144 . 32 Guns 1229 | 135 638 280 144 . 32 Cannons . | . . . . . . Explosions . | . . . . . . Melee . | . . . . . . Ramming 4 | . 4 . . . . Kinetic 703 | . 247 280 144 . 32 Thermal 315 | . 315 . . . . Explosive . | . . . . . . Electromagnetic 211 | 135 76 . . . . Impact . | . . . . . . Slashing . | . . . . . . Piercing . | . . . . . . Highest Corruption . | . . . . . . Average Corruption . | . . . . . . Corruption Purged . | . . . . . . Corruption Blocked . | . . . . . . Overload Shots . | . . . . . . Overflow Damage . | . . . . . . Projectiles . | . . . . . . Explosions . | . . . . . . Melee . | . . . . . . Knockbacks . | . . . . . . Impact . | . . . . . . Kinetic . | . . . . . . Secondary . | . . . . . . Self-Inflicted Damage . | . . . . . . Shots . | . . . . . . Rammed . | . . . . . . Targets Rammed 1 | . 1 . . . . Kicked 1 | . 1 . . . . Crushed . | . . . . . . Highest Temperature 228 | 20 228 22 . . . Average Temperature 53 | 20 62 9 . . . Received Heat Transfer 357 | . 126 168 . . 63 Siege Activations . | . . . . . . Robots Corrupted . | . . . . . . Combat Hostiles . | . . . . . . Parts Fried . | . . . . . . Impact Corruptions . | . . . . . . Robots Melted . | . . . . . . Combat Hostiles . | . . . . . . Parts Melted 1 | . 1 . . . . Heat Transferred 749 | . 749 . . . . Parts Sabotaged . | . . . . . . Parts Stolen . | . . . . . . Parts Stripped . | . . . . . . Power Chain Reactions . | . . . . . . Alert | -11 -10 -9 -9 -9 -8 ------- Run | Yrd Mat Mat Min Exi Min Peak Influence 369 | 20 369 226 167 . 30 Initial 87 | . 13 40 87 . . Average 151 | 8 183 138 162 . 3 Maximum Alert Level 1 | . 1 1 . . . Low Security (%) 70 | 100 62 64 100 . 100 Level 1 29 | . 37 35 . . . Level 2 . | . . . . . . Level 3 . | . . . . . . Level 4 . | . . . . . . Level 5 . | . . . . . . High Security . | . . . . . . Max Security . | . . . . . . Squads Dispatched 3 | . 3 . . . . Investigation 1 | . 1 . . . . Extermination . | . . . . . . Reinforcement 2 | . 2 . . . . Assault . | . . . . . . Garrison . | . . . . . . Intercept . | . . . . . . Searches Triggered . | . . . . . . Construction Impeded . | . . . . . . Haulers Reinforced . | . . . . . . Active Scanning Responses . | . . . . . . Cargo Convoy Interrupts . | . . . . . . Stealth | -11 -10 -9 -9 -9 -8 --------- Run | Yrd Mat Mat Min Exi Min Distress Signals 1 | . 1 . . . . Communications Jammed . | . . . . . . Distress Signals . | . . . . . . Times Spotted 45 | . 24 9 3 . 9 Peak Tracking Total 7 | . 4 4 3 . 7 Tactical Retreats 4 | . 2 1 . . 1 Traps | -11 -10 -9 -9 -9 -8 ------- Run | Yrd Mat Mat Min Exi Min Traps Triggered 1 | . 1 . . . . Indirectly . | . . . . . . Trap Hack Attempts . | . . . . . . Triggered . | . . . . . . Disarmed . | . . . . . . Reprogrammed . | . . . . . . Reused . | . . . . . . Traps Extracted . | . . . . . . Installed . | . . . . . . Triggered . | . . . . . . Machines | -11 -10 -9 -9 -9 -8 ---------- Run | Yrd Mat Mat Min Exi Min Machines Disabled 1 | . . . 1 . . Max in Single Turn 1 | . . . 1 . . Machines Repaired . | . . . . . . Machines Dismantled . | . . . . . . Machines Sabotaged . | . . . . . . Overloaded Fab Kills . | . . . . . . Hacking | -11 -10 -9 -9 -9 -8 --------- Run | Yrd Mat Mat Min Exi Min Machines Accessed 9 | . 4 . . 5 . Terminals 2 | . 2 . . . . Fabricators . | . . . . . . Repair Stations . | . . . . . . Recycling Units 2 | . 2 . . . . Scanalyzers . | . . . . . . Garrison Access . | . . . . . . Total Hacks 63 | . 13 . . 50 . Successful 58 | . 8 . . 50 . Failed 5 | . 5 . . . . Catastrophic . | . . . . . . Database Lockouts . | . . . . . . Manual 3 | . 2 . . 1 . Terminals 7 | . 7 . . . . Fabricators . | . . . . . . Repair Stations . | . . . . . . Recycling Units 6 | . 6 . . . . Scanalyzers . | . . . . . . Garrison Access . | . . . . . . Terminal Hacks 53 | . 3 . . 50 . Record 49 | . . . . 49 . Robot Analysis 2 | . 2 . . . . Security Status 1 | . 1 . . . . Derelict Proto ID Bank 1 | . . . . 1 . Fabricator Hacks . | . . . . . . Repair Station Hacks . | . . . . . . Recycling Unit Hacks 4 | . 4 . . . . Process 1 | . 1 . . . . Report Inventory 2 | . 2 . . . . Retrieve Matter 1 | . 1 . . . . Scanalyzer . | . . . . . . Garrison Access Hacks . | . . . . . . Unauthorized Hacks 1 | . 1 . . . . Terminals 1 | . 1 . . . . Botnet 1 | . 1 . . . . Fabricators . | . . . . . . Repair Stations . | . . . . . . Recycling Units . | . . . . . . Scanalyzers . | . . . . . . Garrison Access . | . . . . . . Data Cores Recovered . | . . . . . . Used . | . . . . . . Hacking Detections 2 | . 2 . . . . Full Trace Events 1 | . 1 . . . . Feedback Events . | . . . . . . Feedback Blocked . | . . . . . . Robot Schematics Acquired . | . . . . . . Robots Built . | . . . . . . Authchips . | . . . . . . Time . | . . . . . . Total Robot Build Rating . | . . . . . . Part Schematics Acquired . | . . . . . . Parts Built . | . . . . . . Authchips . | . . . . . . Time . | . . . . . . Total Part Build Rating . | . . . . . . Parts Repaired . | . . . . . . Time . | . . . . . . Parts Recycled . | . . . . . . Recycled Matter 100 | . 100 . . . . Retrieved Matter 100 | . 100 . . . . Retrieved Components . | . . . . . . Parts Scanalyzed . | . . . . . . Part Schematics Acquired . | . . . . . . Parts Damaged . | . . . . . . Bothacking | -11 -10 -9 -9 -9 -8 ------------ Run | Yrd Mat Mat Min Exi Min Used RIF Installer . | . . . . . . Robots Hacked . | . . . . . . Non-combat . | . . . . . . Combat . | . . . . . . Robot Hacks Applied . | . . . . . . Relay Couplers Released . | . . . . . . Fabnet Peak Effective % . | . . . . . . Robots Rewired . | . . . . . . Allies Hacked . | . . . . . . Hacks Repelled . | . . . . . . Allies | -11 -10 -9 -9 -9 -8 -------- Run | Yrd Mat Mat Min Exi Min Total Allies . | . . . . . . Largest Group . | . . . . . . Highest-Rated Group . | . . . . . . Highest-Rated Ally . | . . . . . . Total Orders . | . . . . . . Ally Attacks . | . . . . . . Total Damage . | . . . . . . Kills . | . . . . . . Allies Corrupted . | . . . . . . Allies Melted . | . . . . . . Intel | -11 -10 -9 -9 -9 -8 ------- Run | Yrd Mat Mat Min Exi Min Robot Analysis Total 2 | . 2 . . . . Derelict Logs Recovered 1 | . . . 1 . . Drone Launches . | . . . . . . Drone Recoveries . | . . . . . . Exploration | -11 -10 -9 -9 -9 -8 ------------- Run | Yrd Mat Mat Min Exi Min Turns Passed 2562 | 131 1359 297 133 484 158 Spaces Moved 2160 | 106 724 188 155 827 160 Core 17 | 5 . . 3 . 9 Treads . | . . . . . . Legs 770 | . 582 188 . . . Wheels 384 | 101 142 . . . 141 Hover . | . . . . . . Flight 989 | . . . 152 827 10 Fastest Speed 37 | 50 80 120 37 37 37 Average Speed 83 | 78 112 120 39 57 85 Slowest Speed 200 | 80 120 120 150 117 200 Overloaded Moves . | . . . . . . Propulsion Burnouts . | . . . . . . Robots Hopped . | . . . . . . Cave-ins Triggered . | . . . . . . Exploration Rate (%) 44 | 5 76 15 37 93 42 Regions Visited 5 Branch Regions 3 Pre-discovered Areas 2 | . . . 1 1 . Known Exits Taken 2 | . . . 1 1 . Unknown Exits Taken 3 | 1 1 1 . . . Scrap Searched 1 | . . . 1 . . Spaces Dug . | . . . . . . Terrain Destroyed . | . . . . . . Melee . | . . . . . . Projectile . | . . . . . . AOE . | . . . . . . Terrain Rammed . | . . . . . . Walls Destroyed . | . . . . . . Machines Disabled . | . . . . . . Actions | -11 -10 -9 -9 -9 -8 --------- Run | Yrd Mat Mat Min Exi Min Total 2801 | 134 1208 235 216 832 176 Wait 472 | . 402 28 41 1 . Move 2155 | 105 723 187 154 826 160 Hop . | . . . . . . Pick Up 21 | 7 12 1 . 1 . Fast Attach 16 | 6 5 . 4 1 . Attach 8 | . 1 . 3 1 3 Detach 3 | . . . . 1 2 Swap 10 | . 9 1 . . . Drop 27 | . 19 2 3 1 2 Fire 88 | 16 36 16 11 . 9 Melee . | . . . . . . Ram . | . . . . . . Kick 1 | . 1 . . . . Crush . | . . . . . . Escape Stasis . | . . . . . . Rewire . | . . . . . . Trap . | . . . . . . Miscellaneous . | . . . . . . Route ------- -11/Scrapyard -10/Materials (discovered 4 exits: [*Mat x2] / [*Min x2]) -9/Materials -9/Mines (discovered 2 exits: [*Mat] / *Exi) -9/Exiles -8/Mines History --------- Turn | Location | Event 12 | -11/Scrapyard | Discovered new exit (range 15) 132 | -11/Scrapyard | Entered Materials 181 | -10/Materials | Discovered new exit (range 6) 227 | -10/Materials | Discovered new exit (range 16) 305 | -10/Materials | Build established: Mutant 763 | -10/Materials | Discovered new exit (range 9) 1226 | -10/Materials | Discovered new exit (range 6) 1491 | -10/Materials | Entered another Materials area 1491 | -9/Materials | Evolved 2 slots: Utility x2 1715 | -9/Materials | Discovered new exit (range 16) 1788 | -9/Materials | Entered Mines 1836 | -9/Mines | Lost 4 parts (1p1n1u1w) 1874 | -9/Mines | Discovered new exit (range 7) 1909 | -9/Mines | Learned location of Zion (-6) 1919 | -9/Mines | Deemed a non-threat by the Exiles lab entrance 1919 | -9/Mines | Discovered new exit (range 5) 1921 | -9/Mines | Identified exit to Exiles 1921 | -9/Mines | Entered Exiles 1931 | -9/Exiles | Met 8R-AWN 1938 | -9/Exiles | Met EX-HEX 1955 | -9/Exiles | Met EX-DEC 1963 | -9/Exiles | Visited The Gauntlet 2005 | -9/Exiles | Discovered new exit (range 14) 2080 | -9/Exiles | Met EX-BIN 2087 | -9/Exiles | Aligned with FarCom system 2087 | -9/Exiles | Given EX-Vault access code 2110 | -9/Exiles | Opened EX-Vault 2124 | -9/Exiles | Warned to stay clear of 0b10 Research branches 2133 | -9/Exiles | Build established: Scavenger-Mutant 2245 | -9/Exiles | Found Army-in-a-Box 2403 | -9/Exiles | Identified exit to Mines 2405 | -9/Exiles | Left Exiles lab with Army-in-a-Box 2405 | -9/Exiles | Entered Mines 2454 | -8/Mines | Lost 3 parts (1p1u1w) 2538 | -8/Mines | Core integrity fell below 50% 2552 | -8/Mines | Core integrity fell below 20% 2563 | -8/Mines | Destroyed by G-50 Soldier with Heavy Laser Last Messages --------------- something like 1234 which I did last time as a little joke and some thief managed to sneak in here and steal a few of HEX's prototypes. 02244_ Dropped Autogun. 02245_ Acquired Army-in-a-Box. 02403_ EXIT=IDENTIFIED: MINES LOCATION=MINES GOAL=ESCAPE 02405_ Receiving FarCom transmissions... 02408_ Sensor Array destroyed. 02411_ Penetrated by Slug. 02420_ Lgt. Assault Rifle destroyed. 02422_ Dropped Lgt. Nuclear Core. 02423_ Penetrated by Slug. 02423_ Lgt. Ion Engine destroyed. 02534_ Penetrated by Slug. 02537_ Wheel destroyed. 02543_ Penetrated by Slug. 02551_ Signal Interpreter destroyed. 02561_ Dropped Med. Storage Unit. Map ----- +----------------------------------------------------+ | ????????????????????????????????????????????? | | ????????????????????????????????????????????? | | ????????????????????????????????????????????? | | ????????????????????????????????????????????? | | ????????????????????????????????????????????? | | ????????????????????????????????????????????? | | ????????????????????????????????????????????? | | ????????????????????????????????????????????? | | ####????????????????????????????????????????? | | #????????????????????????????????????????? | | ## #???????????? ????????? #????????????????? | | ???????????????? #??????# ##??????????????? | | #??????????????? #?????? #??????????????? | | ##????????????## #?????? #??????????????? | | #???????????## ##????? #??????????????? | | ##?????????## #????? #??????????????? | | #?????????# #????? ##?????????????? | | #?????????# #??????# #?????????????? | | ###?????????# #??????# ??????????????? | | ?????????????# ##?????#g ???????????????? | | ????????###### ####### #???????????????? | | ???????## ## ## ####????????????? | | ######## # ###??????????? | | g ##?????????? | | ## ###### ##????????? | | ?# #????# @g #????????? | | ?# #????## ##### #????????? | | ?# #?????####### ##???## ##????????? | | ?# #???????????# #????## ##?????????? | | ?# #???????????# #????# """ ##?????????? | | ?# #???????????## ##????# """ u##????????? | | ?# #????????????####????## l""" #????????? | | ?? ?????????????????????# !!! #????????? | | ?? ?????????????????????# ! ##???????? | | ??#?????????????????????## ## #???????? | | ?????????????????????????####### ##??????? | | ?????????????????????###???????# h #??????? | | ????????????????????## #?????## #??????? | | ????????????????????# ###??# g ##??????? | | ????????????????????# #### ##???????? | | ????????????????????### ## g##???????? | | ??????????????????????## ## ##??????? | | ??????????????????????## ### #####??? | | ?????????????????????## #### ##?? | | ?????????????????????# ##### #?? | | ????????????????????# ## ##?## #?? | | ??????????????????# ### #??# #?? | | ?????????????????# #?# #??# #?? | | ?????????????????####### ??# #??# ##?? | | ???????????????????????# ??# #### ##??? | +----------------------------------------------------+ Best States ------------- Heat Dissipation 28 Energy Generation 14 Energy Capacity 250 Matter Stores 300 Matter Capacity 300 Sight Range 16 Robot Scan Range 14 Terrain Scan Density 10 Evasion (%) 62 Targeting Accuracy 5 Item Schematics ----------------- None Robot Schematics ------------------ None Fabricated ------------ Nothing Alien Tech Used ----------------- None Achievements -------------- Librarian Challenges ------------ None Game ------ Seed GravityDisposableCoupler Manual? 0 Play Time 00:41:07 Cumulative 5.1 hours Start 2024.07.12 @ 04:38:54 End 2024.07.12 @ 05:18:48 Sessions 1 Manual Loads 0 Difficulty Rogue Special Mode None Game No. 9 Rogue 8 Adventurer 0 Explorer 1 Win Type - Total 0 Types 0/0/0/0/0/0/0/0/0 Lore% 14 Gallery% 9 Achievement% 10 Wizard Run 0 Options --------- Layout 1 ASCII 0 Keyboard 1 Movement Numpad Keybinds 0 Fullscreen 1 Font 24/Smallcaps Map View 50x35 Zoom Use 0% Tactical HUD 1 Map Filters NONE Filters NONE Steam 1 RUN: 6fe18c06-4ce5-4c4e-9f44-77ec705eb111